[Event "Titled Tuesday Blitz July 25 Early 2023"]
[White "Rodchenkov, Sergey D."]
[Black "Smiechu"]
[WhiteFideId "4168712"]
[WhiteElo "2546"]
[BlackElo "2352"]
[Result "0-1"]
[Round "7"]
[TimeControl "180+2"]
[Date "2023.07.25"]
[WhiteClock "0:01:43"]
[BlackClock "0:01:27"]
[Board "157"]

1. e4 {[%clk 0:03:00]}  c5 {[%clk 0:02:58]} 2. Nf3 {[%clk 0:03:01]}  g6 {[%clk 0:02:58]} 3. d4 {[%clk 0:03:01]}  cxd4 {[%clk 0:02:59]} 4. Nxd4 {[%clk 0:03:02]}  Nc6 {[%clk 0:02:59]} 5. Be3 {[%clk 0:03:02]}  Bg7 {[%clk 0:02:58]} 6. c4 {[%clk 0:03:03]}  Nf6 {[%clk 0:02:58]} 7. Nc3 {[%clk 0:03:03]}  d6 {[%clk 0:02:54]} 8. Be2 {[%clk 0:03:03]}  O-O {[%clk 0:02:54]} 9. O-O {[%clk 0:03:03]}  Nxd4 {[%clk 0:02:54]} 10. Bxd4 {[%clk 0:02:58]}  Be6 {[%clk 0:02:54]} 11. f3 {[%clk 0:02:56]}  Qa5 {[%clk 0:02:53]} 12. Qd2 {[%clk 0:02:51]}  Rfc8 {[%clk 0:02:52]} 13. Rfd1 {[%clk 0:02:50]}  Bxc4 {[%clk 0:02:51]} 14. Bxf6 {[%clk 0:02:30]}  Bxf6 {[%clk 0:02:49]} 15. Nd5 {[%clk 0:02:27]}  Qxd2 {[%clk 0:02:22]} 16. Nxf6+ {[%clk 0:02:26]}  Kg7 {[%clk 0:02:22]} 17. Rxd2 {[%clk 0:02:27]}  Kxf6 {[%clk 0:02:20]} 18. Kf2 {[%clk 0:02:23]}  Bxe2 {[%clk 0:02:18]} 19. Kxe2 {[%clk 0:02:20]}  Rc6 {[%clk 0:02:18]} 20. h4 {[%clk 0:02:20]}  Rac8 {[%clk 0:02:17]} 21. h5 {[%clk 0:02:19]}  Rc1 {[%clk 0:02:13]} 22. Rxc1 {[%clk 0:02:14]}  Rxc1 {[%clk 0:02:12]} 23. hxg6 {[%clk 0:02:15]}  hxg6 {[%clk 0:02:12]} 24. Kf2 {[%clk 0:02:15]}  Ke5 {[%clk 0:02:04]} 25. g3 {[%clk 0:02:13]}  g5 {[%clk 0:02:01]} 26. Re2 {[%clk 0:02:13]}  e6 {[%clk 0:01:56]} 27. Ke3 {[%clk 0:02:13]}  d5 {[%clk 0:01:49]} 28. f4+ {[%clk 0:02:04]}  gxf4+ {[%clk 0:01:48]} 29. gxf4+ {[%clk 0:02:05]}  Kd6 {[%clk 0:01:48]} 30. e5+ {[%clk 0:02:05]}  Kc5 {[%clk 0:01:46]} 31. Rh2 {[%clk 0:02:04]}  d4+ {[%clk 0:01:41]} 32. Ke4 {[%clk 0:01:58]}  Re1+ {[%clk 0:01:40]} 33. Kd3 {[%clk 0:01:57]}  Re3+ {[%clk 0:01:38]} 34. Kd2 {[%clk 0:01:57]}  Rf3 {[%clk 0:01:38]} 35. Rh4 {[%clk 0:01:58]}  Kd5 {[%clk 0:01:36]} 36. Ke2 {[%clk 0:01:58]}  Re3+ {[%clk 0:01:33]} 37. Kf2 {[%clk 0:01:58]}  Ke4 {[%clk 0:01:32]} 38. Rh7 {[%clk 0:01:51]}  Rf3+ {[%clk 0:01:31]} 39. Ke2 {[%clk 0:01:50]}  d3+ {[%clk 0:01:30]} 40. Kd2 {[%clk 0:01:50]}  Rf2+ {[%clk 0:01:30]} 41. Kc3 {[%clk 0:01:49]}  Rc2+ {[%clk 0:01:27]} 42. Kb3 {[%clk 0:01:49]}  Rc7 {[%clk 0:01:27]} 43. Rh1 {[%clk 0:01:45]}  d2 {[%clk 0:01:27]} 44. Rd1 {[%clk 0:01:43]}  Kd3 {[%clk 0:01:27]} 0-1


[Site "https://www.chess.com"]

[Event "Titled Tuesday Blitz July 25 Early 2023"]
[White "Goffredo_Fofi"]
[Black "Buscar, Michael"]
[BlackFideId "2603616"]
[WhiteElo "2509"]
[BlackElo "2333"]
[Result "0-1"]
[Round "7"]
[TimeControl "180+2"]
[Date "2023.07.25"]
[WhiteClock "0:00:08"]
[BlackClock "0:01:14"]
[Board "159"]

1. e4 {[%clk 0:03:00]}  c5 {[%clk 0:02:59]} 2. d3 {[%clk 0:03:00]}  d5 {[%clk 0:02:58]} 3. Nd2 {[%clk 0:03:01]}  dxe4 {[%clk 0:02:59]} 4. dxe4 {[%clk 0:03:01]}  Nc6 {[%clk 0:02:58]} 5. Ngf3 {[%clk 0:03:00]}  g6 {[%clk 0:02:57]} 6. Bc4 {[%clk 0:02:59]}  Bg7 {[%clk 0:02:53]} 7. O-O {[%clk 0:02:54]}  Nf6 {[%clk 0:02:53]} 8. c3 {[%clk 0:02:39]}  O-O {[%clk 0:02:52]} 9. Qe2 {[%clk 0:02:36]}  Bg4 {[%clk 0:02:50]} 10. h3 {[%clk 0:02:34]}  Bd7 {[%clk 0:02:41]} 11. e5 {[%clk 0:02:25]}  Ne8 {[%clk 0:02:41]} 12. e6 {[%clk 0:02:23]}  Bxe6 {[%clk 0:02:38]} 13. Bxe6 {[%clk 0:02:23]}  fxe6 {[%clk 0:02:39]} 14. Qxe6+ {[%clk 0:02:03]}  Kh8 {[%clk 0:02:39]} 15. Ng5 {[%clk 0:02:02]}  Ne5 {[%clk 0:02:39]} 16. Nc4 {[%clk 0:01:48]}  Nc7 {[%clk 0:02:38]} 17. Nxe5 {[%clk 0:01:16]}  Nxe6 {[%clk 0:02:38]} 18. Nxe6 {[%clk 0:01:17]}  Qd5 {[%clk 0:02:32]} 19. Nxf8 {[%clk 0:01:17]}  Bxe5 {[%clk 0:02:26]} 20. Bh6 {[%clk 0:01:15]}  Rd8 {[%clk 0:02:20]} 21. Rfe1 {[%clk 0:01:12]}  Rd6 {[%clk 0:02:11]} 22. Re2 {[%clk 0:00:43]}  Bg7 {[%clk 0:02:03]} 23. Bxg7+ {[%clk 0:00:37]}  Kxg7 {[%clk 0:02:02]} 24. Rxe7+ {[%clk 0:00:35]}  Kxf8 {[%clk 0:02:02]} 25. Rae1 {[%clk 0:00:35]}  Rd7 {[%clk 0:01:56]} 26. Re8+ {[%clk 0:00:34]}  Kf7 {[%clk 0:01:56]} 27. R8e5 {[%clk 0:00:35]}  Qxa2 {[%clk 0:01:55]} 28. R1e2 {[%clk 0:00:28]}  b6 {[%clk 0:01:54]} 29. Kh2 {[%clk 0:00:28]}  a5 {[%clk 0:01:54]} 30. f4 {[%clk 0:00:28]}  Qb1 {[%clk 0:01:50]} 31. h4 {[%clk 0:00:22]}  a4 {[%clk 0:01:50]} 32. h5 {[%clk 0:00:22]}  Qd3 {[%clk 0:01:47]} 33. Rf2 {[%clk 0:00:18]}  gxh5 {[%clk 0:01:42]} 34. Rxh5 {[%clk 0:00:18]}  Rd5 {[%clk 0:01:39]} 35. Rh3 {[%clk 0:00:18]}  Qf5 {[%clk 0:01:37]} 36. g4 {[%clk 0:00:17]}  Qb1 {[%clk 0:01:35]} 37. f5 {[%clk 0:00:16]}  Kg8 {[%clk 0:01:26]} 38. Re3 {[%clk 0:00:16]}  Rd1 {[%clk 0:01:25]} 39. f6 {[%clk 0:00:08]}  Rh1+ {[%clk 0:01:24]} 40. Kg2 {[%clk 0:00:07]}  Rg1+ {[%clk 0:01:23]} 41. Kf3 {[%clk 0:00:07]}  Rf1 {[%clk 0:01:22]} 42. Re7 {[%clk 0:00:02]}  Rxf2+ {[%clk 0:01:19]} 43. Kxf2 {[%clk 0:00:03]}  Qxb2+ {[%clk 0:01:19]} 44. Kg3 {[%clk 0:00:04]}  Qxc3+ {[%clk 0:01:20]} 45. Kh4 {[%clk 0:00:05]}  Qxf6+ {[%clk 0:01:20]} 46. Kh5 {[%clk 0:00:05]}  Qxe7 {[%clk 0:01:20]} 47. g5 {[%clk 0:00:05]}  Qe4 {[%clk 0:01:14]} 48. g6 {[%clk 0:00:06]}  Qxg6+ {[%clk 0:01:15]} 49. Kh4 {[%clk 0:00:07]}  a3 {[%clk 0:01:15]} 50. Kh3 {[%clk 0:00:07]}  a2 {[%clk 0:01:15]} 51. Kh2 {[%clk 0:00:08]}  a1=Q {[%clk 0:01:14]} 52. Kh3 {[%clk 0:00:08]}  Qh1# {[%clk 0:01:14]} 0-1


[Site "https://www.chess.com"]

[Event "Titled Tuesday Blitz July 25 Early 2023"]
[White "Perske, Thore"]
[Black "Makhmudov, Shukhrat"]
[WhiteFideId "12902195"]
[BlackFideId "14200775"]
[WhiteElo "2475"]
[BlackElo "2331"]
[Result "1-0"]
[Round "7"]
[TimeControl "180+2"]
[Date "2023.07.25"]
[WhiteClock "0:01:49"]
[BlackClock "0:00:46"]
[Board "161"]

1. d4 {[%clk 0:02:56]}  Nf6 {[%clk 0:02:59]} 2. g3 {[%clk 0:02:56]}  d5 {[%clk 0:02:12]} 3. Bg2 {[%clk 0:02:46]}  c6 {[%clk 0:02:12]} 4. Nf3 {[%clk 0:02:46]}  Bf5 {[%clk 0:02:11]} 5. c4 {[%clk 0:02:46]}  e6 {[%clk 0:02:11]} 6. Nc3 {[%clk 0:02:47]}  Nbd7 {[%clk 0:02:11]} 7. Nh4 {[%clk 0:02:45]}  Be4 {[%clk 0:02:10]} 8. f3 {[%clk 0:02:44]}  Bg6 {[%clk 0:02:09]} 9. Nxg6 {[%clk 0:02:44]}  hxg6 {[%clk 0:02:10]} 10. e4 {[%clk 0:02:45]}  Bb4 {[%clk 0:02:08]} 11. O-O {[%clk 0:02:38]}  Bxc3 {[%clk 0:01:56]} 12. bxc3 {[%clk 0:02:39]}  Qb6 {[%clk 0:01:52]} 13. e5 {[%clk 0:02:33]}  Nxe5 {[%clk 0:01:47]} 14. c5 {[%clk 0:02:33]}  Qa5 {[%clk 0:01:44]} 15. dxe5 {[%clk 0:02:32]}  Qxc3 {[%clk 0:01:39]} 16. Rb1 {[%clk 0:02:16]}  Qxc5+ {[%clk 0:01:31]} 17. Kh1 {[%clk 0:02:16]}  Nd7 {[%clk 0:01:30]} 18. Rxb7 {[%clk 0:02:12]}  O-O-O {[%clk 0:01:28]} 19. Qb3 {[%clk 0:02:05]}  Nb6 {[%clk 0:01:03]} 20. Rxf7 {[%clk 0:01:59]}  a5 {[%clk 0:00:58]} 21. Be3 {[%clk 0:01:56]}  d4 {[%clk 0:00:58]} 22. Rc1 {[%clk 0:01:54]}  Qb4 {[%clk 0:00:48]} 23. Qxe6+ {[%clk 0:01:52]}  Kb8 {[%clk 0:00:46]} 24. Qxc6 {[%clk 0:01:49]} 1-0


[Site "https://www.chess.com"]

[Event "Titled Tuesday Blitz July 25 Early 2023"]
[White "Kopczynski, Michal"]
[Black "Alberto, Manuel"]
[WhiteFideId "1124200"]
[BlackFideId "10100148"]
[WhiteElo "2456"]
[BlackElo "2329"]
[Result "0-1"]
[Round "7"]
[TimeControl "180+2"]
[Date "2023.07.25"]
[WhiteClock "0:00:10"]
[BlackClock "0:00:17"]
[Board "164"]

1. e4 {[%clk 0:03:00]}  c5 {[%clk 0:02:58]} 2. d4 {[%clk 0:03:01]}  cxd4 {[%clk 0:02:57]} 3. c3 {[%clk 0:03:01]}  d3 {[%clk 0:02:56]} 4. Bxd3 {[%clk 0:03:01]}  d6 {[%clk 0:02:56]} 5. f4 {[%clk 0:03:02]}  Nf6 {[%clk 0:02:55]} 6. Nf3 {[%clk 0:03:02]}  g6 {[%clk 0:02:55]} 7. O-O {[%clk 0:03:02]}  Bg7 {[%clk 0:02:55]} 8. Kh1 {[%clk 0:03:03]}  O-O {[%clk 0:02:54]} 9. Qe1 {[%clk 0:03:03]}  Nc6 {[%clk 0:02:54]} 10. Be3 {[%clk 0:03:04]}  Ng4 {[%clk 0:02:53]} 11. Bg1 {[%clk 0:03:03]}  e5 {[%clk 0:02:49]} 12. f5 {[%clk 0:02:59]}  gxf5 {[%clk 0:02:41]} 13. exf5 {[%clk 0:03:00]}  d5 {[%clk 0:02:41]} 14. h3 {[%clk 0:02:58]}  Nh6 {[%clk 0:02:37]} 15. f6 {[%clk 0:02:49]}  Qxf6 {[%clk 0:02:32]} 16. Bb5 {[%clk 0:02:46]}  Qg6 {[%clk 0:02:19]} 17. Bxc6 {[%clk 0:02:43]}  bxc6 {[%clk 0:02:19]} 18. Nxe5 {[%clk 0:02:43]}  Qh5 {[%clk 0:02:18]} 19. Nxc6 {[%clk 0:02:35]}  Bxh3 {[%clk 0:02:08]} 20. gxh3 {[%clk 0:02:36]}  Qxh3+ {[%clk 0:02:08]} 21. Bh2 {[%clk 0:02:36]}  Ng4 {[%clk 0:01:57]} 22. Qg3 {[%clk 0:02:28]}  Qxf1+ {[%clk 0:01:56]} 23. Bg1 {[%clk 0:02:25]}  h5 {[%clk 0:01:55]} 24. Ne7+ {[%clk 0:02:05]}  Kh7 {[%clk 0:01:53]} 25. Nd2 {[%clk 0:01:49]}  Qxa1 {[%clk 0:01:52]} 26. Qh4 {[%clk 0:01:41]}  Qd1 {[%clk 0:01:40]} 27. Qxh5+ {[%clk 0:01:41]}  Bh6 {[%clk 0:01:40]} 28. Qf5+ {[%clk 0:01:36]}  Kg7 {[%clk 0:01:36]} 29. Nf3 {[%clk 0:01:15]}  Nf6 {[%clk 0:01:07]} 30. Qh3 {[%clk 0:00:46]}  Rh8 {[%clk 0:00:58]} 31. Nf5+ {[%clk 0:00:46]}  Kg8 {[%clk 0:00:50]} 32. Kg2 {[%clk 0:00:28]}  Qe2+ {[%clk 0:00:45]} 33. Bf2 {[%clk 0:00:26]}  Bf4 {[%clk 0:00:27]} 34. Ne7+ {[%clk 0:00:23]}  Kg7 {[%clk 0:00:27]} 35. Nf5+ {[%clk 0:00:23]}  Kg6 {[%clk 0:00:27]} 36. Ne7+ {[%clk 0:00:16]}  Qxe7 {[%clk 0:00:26]} 37. Nh4+ {[%clk 0:00:15]}  Rxh4 {[%clk 0:00:25]} 38. Qxh4 {[%clk 0:00:16]}  Qe4+ {[%clk 0:00:24]} 39. Kf1 {[%clk 0:00:15]}  Re8 {[%clk 0:00:22]} 40. Qh3 {[%clk 0:00:14]}  Qe2+ {[%clk 0:00:21]} 41. Kg2 {[%clk 0:00:15]}  Re4 {[%clk 0:00:19]} 42. Qc8 {[%clk 0:00:11]}  Be3 {[%clk 0:00:19]} 43. Kh3 {[%clk 0:00:10]}  Bxf2 {[%clk 0:00:18]} 44. Qg4+ {[%clk 0:00:10]}  Qxg4+ {[%clk 0:00:17]} 0-1


[Site "https://www.chess.com"]

[Event "Titled Tuesday Blitz July 25 Early 2023"]
[White "Ladan, Nicholas"]
[Black "Slovineanu, Viacheslav"]
[WhiteFideId "30918855"]
[BlackFideId "13900510"]
[WhiteElo "2449"]
[BlackElo "2329"]
[Result "0-1"]
[Round "7"]
[TimeControl "180+2"]
[Date "2023.07.25"]
[WhiteClock "0:01:32"]
[BlackClock "0:01:32"]
[Board "165"]

1. a3 {[%clk 0:03:00]}  e5 {[%clk 0:02:56]} 2. b4 {[%clk 0:03:00]}  a5 {[%clk 0:02:53]} 3. b5 {[%clk 0:02:59]}  d5 {[%clk 0:02:51]} 4. Bb2 {[%clk 0:02:59]}  Bd6 {[%clk 0:02:51]} 5. f4 {[%clk 0:02:54]}  exf4 {[%clk 0:02:41]} 6. Bxg7 {[%clk 0:02:54]}  Qh4+ {[%clk 0:02:39]} 7. g3 {[%clk 0:02:54]}  fxg3 {[%clk 0:02:39]} 8. Bg2 {[%clk 0:02:55]}  gxh2+ {[%clk 0:02:30]} 9. Kf1 {[%clk 0:02:55]}  Nh6 {[%clk 0:02:27]} 10. Nf3 {[%clk 0:02:42]}  Qg3 {[%clk 0:02:25]} 11. Bxh8 {[%clk 0:02:38]}  Bh3 {[%clk 0:02:16]} 12. Ne1 {[%clk 0:01:46]}  Qf4+ {[%clk 0:01:43]} 13. Nf3 {[%clk 0:01:44]}  Bxg2+ {[%clk 0:01:41]} 14. Kxg2 {[%clk 0:01:42]}  Qg3+ {[%clk 0:01:42]} 15. Kf1 {[%clk 0:01:39]}  Qh3+ {[%clk 0:01:42]} 16. Kf2 {[%clk 0:01:32]}  Ng4+ {[%clk 0:01:42]} 17. Ke1 {[%clk 0:01:32]}  Bg3# {[%clk 0:01:32]} 0-1


[Site "https://www.chess.com"]

[Event "Titled Tuesday Blitz July 25 Early 2023"]
[White "Padmini, Rout"]
[Black "Prydun, Andriy"]
[WhiteFideId "5029295"]
[BlackFideId "14145898"]
[WhiteElo "2441"]
[BlackElo "2322"]
[Result "1-0"]
[Round "7"]
[TimeControl "180+2"]
[Date "2023.07.25"]
[WhiteClock "0:00:08"]
[BlackClock "0:00:00"]
[Board "166"]

1. Nf3 {[%clk 0:03:00]}  Nf6 {[%clk 0:02:59]} 2. g3 {[%clk 0:03:01]}  g6 {[%clk 0:02:56]} 3. Bg2 {[%clk 0:03:01]}  Bg7 {[%clk 0:02:53]} 4. O-O {[%clk 0:03:02]}  O-O {[%clk 0:02:54]} 5. d4 {[%clk 0:03:02]}  d6 {[%clk 0:02:52]} 6. b3 {[%clk 0:03:03]}  Nc6 {[%clk 0:02:52]} 7. Bb2 {[%clk 0:03:00]}  a5 {[%clk 0:02:52]} 8. d5 {[%clk 0:02:55]}  Nb4 {[%clk 0:02:36]} 9. c4 {[%clk 0:02:54]}  a4 {[%clk 0:02:19]} 10. a3 {[%clk 0:02:52]}  Na6 {[%clk 0:01:44]} 11. b4 {[%clk 0:02:52]}  c6 {[%clk 0:01:41]} 12. dxc6 {[%clk 0:02:49]}  Qc7 {[%clk 0:01:40]} 13. Nd4 {[%clk 0:02:44]}  bxc6 {[%clk 0:01:40]} 14. Bxc6 {[%clk 0:02:35]}  Rb8 {[%clk 0:01:37]} 15. b5 {[%clk 0:02:12]}  Nc5 {[%clk 0:01:36]} 16. Nc3 {[%clk 0:02:04]}  Bh3 {[%clk 0:01:18]} 17. Bg2 {[%clk 0:02:00]}  Bxg2 {[%clk 0:01:15]} 18. Kxg2 {[%clk 0:02:01]}  Ncd7 {[%clk 0:01:13]} 19. Nc6 {[%clk 0:01:55]}  Rbe8 {[%clk 0:01:05]} 20. Nxa4 {[%clk 0:01:42]}  Ra8 {[%clk 0:00:59]} 21. Nc3 {[%clk 0:01:35]}  Nb6 {[%clk 0:00:52]} 22. Qd3 {[%clk 0:01:27]}  e6 {[%clk 0:00:45]} 23. a4 {[%clk 0:01:25]}  Nfd7 {[%clk 0:00:40]} 24. a5 {[%clk 0:01:24]}  Nc8 {[%clk 0:00:40]} 25. Na4 {[%clk 0:01:02]}  Nc5 {[%clk 0:00:14]} 26. Nxc5 {[%clk 0:01:00]}  Bxb2 {[%clk 0:00:15]} 27. Ra2 {[%clk 0:00:55]}  Bg7 {[%clk 0:00:14]} 28. Nb3 {[%clk 0:00:43]}  Ne7 {[%clk 0:00:07]} 29. Nxe7+ {[%clk 0:00:41]}  Qxe7 {[%clk 0:00:08]} 30. a6 {[%clk 0:00:34]}  Rfc8 {[%clk 0:00:05]} 31. b6 {[%clk 0:00:26]}  Rcb8 {[%clk 0:00:03]} 32. b7 {[%clk 0:00:20]}  Rxb7 {[%clk 0:00:03]} 33. axb7 {[%clk 0:00:19]}  Qxb7+ {[%clk 0:00:04]} 34. Qf3 {[%clk 0:00:11]}  Qxf3+ {[%clk 0:00:04]} 35. Kxf3 {[%clk 0:00:12]}  Rxa2 {[%clk 0:00:04]} 36. Rb1 {[%clk 0:00:09]}  Rb2 {[%clk 0:00:04]} 37. Rxb2 {[%clk 0:00:09]}  Bxb2 {[%clk 0:00:05]} 38. Na5 {[%clk 0:00:07]}  Kf8 {[%clk 0:00:05]} 39. Nc6 {[%clk 0:00:06]}  Ke8 {[%clk 0:00:05]} 40. Nb4 {[%clk 0:00:05]}  Kd7 {[%clk 0:00:05]} 41. Nd3 {[%clk 0:00:06]}  Bg7 {[%clk 0:00:05]} 42. c5 {[%clk 0:00:06]}  dxc5 {[%clk 0:00:05]} 43. Nxc5+ {[%clk 0:00:07]}  Ke7 {[%clk 0:00:05]} 44. Nd3 {[%clk 0:00:07]}  Bf6 {[%clk 0:00:06]} 45. h4 {[%clk 0:00:07]}  Bg7 {[%clk 0:00:06]} 46. Ke4 {[%clk 0:00:07]}  h5 {[%clk 0:00:07]} 47. e3 {[%clk 0:00:06]}  Bf6 {[%clk 0:00:08]} 48. f4 {[%clk 0:00:06]}  Bg7 {[%clk 0:00:07]} 49. Kf3 {[%clk 0:00:07]}  Bf6 {[%clk 0:00:06]} 50. e4 {[%clk 0:00:07]}  Bg7 {[%clk 0:00:02]} 51. e5 {[%clk 0:00:07]}  Bf8 {[%clk 0:00:02]} 52. Nc5 {[%clk 0:00:07]}  Ke8 {[%clk 0:00:02]} 53. Ne4 {[%clk 0:00:08]}  Be7 {[%clk 0:00:03]} 54. Ke2 {[%clk 0:00:09]}  Kd7 {[%clk 0:00:03]} 55. Kd3 {[%clk 0:00:09]}  Kc6 {[%clk 0:00:04]} 56. Kc4 {[%clk 0:00:10]}  Bd8 {[%clk 0:00:04]} 57. Nd2 {[%clk 0:00:09]}  Be7 {[%clk 0:00:04]} 58. Nf3 {[%clk 0:00:09]}  Kd7 {[%clk 0:00:03]} 59. Nd4 {[%clk 0:00:09]}  Bd8 {[%clk 0:00:01]} 60. Kb5 {[%clk 0:00:09]}  Ke7 {[%clk 0:00:02]} 61. Kc6 {[%clk 0:00:09]}  Ke8 {[%clk 0:00:02]} 62. Nf3 {[%clk 0:00:09]}  Be7 {[%clk 0:00:03]} 63. Nd2 {[%clk 0:00:10]}  Bf8 {[%clk 0:00:03]} 64. Ne4 {[%clk 0:00:10]}  Ba3 {[%clk 0:00:03]} 65. Kc7 {[%clk 0:00:10]}  Ke7 {[%clk 0:00:03]} 66. Nd6 {[%clk 0:00:09]}  Bc1 {[%clk 0:00:03]} 67. Ne4 {[%clk 0:00:09]}  Be3 {[%clk 0:00:03]} 68. Kc6 {[%clk 0:00:10]}  Bg1 {[%clk 0:00:03]} 69. Nd2 {[%clk 0:00:08]}  Bf2 {[%clk 0:00:03]} 70. Ne4 {[%clk 0:00:09]}  Be1 {[%clk 0:00:03]} 71. Kb5 {[%clk 0:00:09]}  Kd7 {[%clk 0:00:04]} 72. Kc5 {[%clk 0:00:09]}  Kc7 {[%clk 0:00:04]} 73. Kc4 {[%clk 0:00:09]}  Kc6 {[%clk 0:00:04]} 74. Kd3 {[%clk 0:00:10]}  Kd5 {[%clk 0:00:05]} 75. Ke3 {[%clk 0:00:09]}  Kc4 {[%clk 0:00:05]} 76. Ke2 {[%clk 0:00:09]}  Kd4 {[%clk 0:00:05]} 77. Kf3 {[%clk 0:00:08]}  Kd3 {[%clk 0:00:00]} 78. Ng5 {[%clk 0:00:08]} 1-0


[Site "https://www.chess.com"]

[Event "Titled Tuesday Blitz July 25 Early 2023"]
[White "Herzog2012"]
[Black "SicilianPanzer"]
[WhiteElo "2440"]
[BlackElo "2316"]
[Result "1-0"]
[Round "7"]
[TimeControl "180+2"]
[Date "2023.07.25"]
[WhiteClock "0:01:01"]
[BlackClock "0:00:00"]
[Board "167"]

1. e4 {[%clk 0:03:00]}  c5 {[%clk 0:02:59]} 2. Nf3 {[%clk 0:03:01]}  Nc6 {[%clk 0:02:58]} 3. d4 {[%clk 0:03:01]}  cxd4 {[%clk 0:02:58]} 4. Nxd4 {[%clk 0:03:02]}  Qb6 {[%clk 0:02:58]} 5. Nb3 {[%clk 0:03:00]}  g6 {[%clk 0:02:57]} 6. Be3 {[%clk 0:02:57]}  Qb4+ {[%clk 0:02:57]} 7. Nc3 {[%clk 0:02:56]}  Bg7 {[%clk 0:02:56]} 8. Bd3 {[%clk 0:02:54]}  Bxc3+ {[%clk 0:02:49]} 9. bxc3 {[%clk 0:02:55]}  Qxc3+ {[%clk 0:02:48]} 10. Bd2 {[%clk 0:02:55]}  Qg7 {[%clk 0:02:36]} 11. O-O {[%clk 0:02:53]}  d6 {[%clk 0:02:30]} 12. f4 {[%clk 0:02:52]}  Nf6 {[%clk 0:02:25]} 13. Bc3 {[%clk 0:02:51]}  O-O {[%clk 0:02:15]} 14. Qe1 {[%clk 0:02:47]}  e5 {[%clk 0:02:10]} 15. Qh4 {[%clk 0:02:35]}  Nh5 {[%clk 0:01:14]} 16. f5 {[%clk 0:02:31]}  Qf6 {[%clk 0:00:40]} 17. Qg4 {[%clk 0:02:17]}  Ng7 {[%clk 0:00:34]} 18. Bd2 {[%clk 0:02:13]}  gxf5 {[%clk 0:00:31]} 19. exf5 {[%clk 0:02:12]}  h6 {[%clk 0:00:20]} 20. h4 {[%clk 0:02:04]}  d5 {[%clk 0:00:16]} 21. Qg3 {[%clk 0:01:57]}  Ne7 {[%clk 0:00:14]} 22. Bb4 {[%clk 0:01:43]}  Re8 {[%clk 0:00:09]} 23. Rae1 {[%clk 0:01:35]}  Nxf5 {[%clk 0:00:08]} 24. Bxf5 {[%clk 0:01:17]}  Bxf5 {[%clk 0:00:09]} 25. Qf3 {[%clk 0:01:16]}  Qg6 {[%clk 0:00:07]} 26. Qxd5 {[%clk 0:01:01]}  Be4 {[%clk 0:00:00]} 27. Qxe4 {[%clk 0:01:01]} 1-0


[Site "https://www.chess.com"]

[Event "Titled Tuesday Blitz July 25 Early 2023"]
[White "AndresDelgado77"]
[Black "Begunov, Konstantin"]
[BlackFideId "4118510"]
[WhiteElo "2286"]
[BlackElo "2418"]
[Result "0-1"]
[Round "7"]
[TimeControl "180+2"]
[Date "2023.07.25"]
[WhiteClock "0:00:00"]
[BlackClock "0:00:10"]
[Board "172"]

1. e4 {[%clk 0:03:00]}  c5 {[%clk 0:02:59]} 2. Nf3 {[%clk 0:02:59]}  d6 {[%clk 0:03:00]} 3. d4 {[%clk 0:02:59]}  cxd4 {[%clk 0:03:01]} 4. Qxd4 {[%clk 0:02:59]}  a6 {[%clk 0:03:00]} 5. Bg5 {[%clk 0:02:58]}  Nc6 {[%clk 0:03:00]} 6. Qd2 {[%clk 0:02:58]}  Bg4 {[%clk 0:02:59]} 7. Nc3 {[%clk 0:02:56]}  Bxf3 {[%clk 0:02:48]} 8. gxf3 {[%clk 0:02:56]}  Qa5 {[%clk 0:02:48]} 9. O-O-O {[%clk 0:02:23]}  g6 {[%clk 0:02:40]} 10. Kb1 {[%clk 0:02:20]}  Bg7 {[%clk 0:02:39]} 11. Nd5 {[%clk 0:02:20]}  Qxd2 {[%clk 0:02:37]} 12. Rxd2 {[%clk 0:02:15]}  Rc8 {[%clk 0:02:36]} 13. Bh3 {[%clk 0:02:05]}  Rb8 {[%clk 0:02:13]} 14. Nc7+ {[%clk 0:02:02]}  Kf8 {[%clk 0:02:06]} 15. Nd5 {[%clk 0:01:58]}  h6 {[%clk 0:02:01]} 16. Be3 {[%clk 0:01:57]}  Nf6 {[%clk 0:01:57]} 17. Bf1 {[%clk 0:01:28]}  Nxd5 {[%clk 0:01:30]} 18. exd5 {[%clk 0:01:10]}  Ne5 {[%clk 0:01:30]} 19. f4 {[%clk 0:01:09]}  Ng4 {[%clk 0:01:22]} 20. Bb6 {[%clk 0:00:55]}  Rc8 {[%clk 0:01:15]} 21. Bh3 {[%clk 0:00:52]}  f5 {[%clk 0:01:10]} 22. Bxg4 {[%clk 0:00:51]}  fxg4 {[%clk 0:01:09]} 23. f3 {[%clk 0:00:48]}  gxf3 {[%clk 0:01:06]} 24. Rf1 {[%clk 0:00:44]}  Rc4 {[%clk 0:00:57]} 25. Rxf3 {[%clk 0:00:44]}  Kf7 {[%clk 0:00:58]} 26. c3 {[%clk 0:00:37]}  Re4 {[%clk 0:00:56]} 27. h4 {[%clk 0:00:29]}  Bf6 {[%clk 0:00:55]} 28. Bf2 {[%clk 0:00:24]}  Rc8 {[%clk 0:00:44]} 29. Kc2 {[%clk 0:00:23]}  Rcc4 {[%clk 0:00:41]} 30. Bg3 {[%clk 0:00:20]}  Rc5 {[%clk 0:00:31]} 31. a3 {[%clk 0:00:09]}  b5 {[%clk 0:00:30]} 32. Rfd3 {[%clk 0:00:03]}  a5 {[%clk 0:00:22]} 33. Kd1 {[%clk 0:00:03]}  a4 {[%clk 0:00:21]} 34. Re2 {[%clk 0:00:02]}  Rcc4 {[%clk 0:00:21]} 35. Rxe4 {[%clk 0:00:02]}  Rxe4 {[%clk 0:00:22]} 36. Kd2 {[%clk 0:00:02]}  h5 {[%clk 0:00:20]} 37. Re3 {[%clk 0:00:02]}  Rc4 {[%clk 0:00:16]} 38. Kd3 {[%clk 0:00:02]}  Rc5 {[%clk 0:00:17]} 39. Ke4 {[%clk 0:00:02]}  Rc4+ {[%clk 0:00:16]} 40. Kf3 {[%clk 0:00:02]}  Ke8 {[%clk 0:00:15]} 41. Rd3 {[%clk 0:00:02]}  Kd7 {[%clk 0:00:15]} 42. Ke3 {[%clk 0:00:02]}  Kc7 {[%clk 0:00:14]} 43. Kf3 {[%clk 0:00:02]}  Kb6 {[%clk 0:00:14]} 44. Bf2+ {[%clk 0:00:02]}  Kc7 {[%clk 0:00:14]} 45. Be3 {[%clk 0:00:02]}  Bxh4 {[%clk 0:00:13]} 46. Rd1 {[%clk 0:00:02]}  Bf6 {[%clk 0:00:09]} 47. Rg1 {[%clk 0:00:02]}  b4 {[%clk 0:00:08]} 48. axb4 {[%clk 0:00:01]}  a3 {[%clk 0:00:09]} 49. bxa3 {[%clk 0:00:02]}  Rxc3 {[%clk 0:00:10]} 50. Rxg6 {[%clk 0:00:02]}  Bd4 {[%clk 0:00:10]} 51. Ke4 {[%clk 0:00:02]}  Bxe3 {[%clk 0:00:10]} 52. Re6 {[%clk 0:00:03]}  Kd7 {[%clk 0:00:09]} 53. Kf5 {[%clk 0:00:03]}  Bc1 {[%clk 0:00:09]} 54. Kg5 {[%clk 0:00:04]}  Bxa3 {[%clk 0:00:09]} 55. Kxh5 {[%clk 0:00:03]}  Bxb4 {[%clk 0:00:09]} 56. Kg6 {[%clk 0:00:03]}  Rf3 {[%clk 0:00:10]} 57. f5 {[%clk 0:00:03]}  Bc3 {[%clk 0:00:10]} 58. Re4 {[%clk 0:00:03]}  Be5 {[%clk 0:00:10]} 59. Ra4 {[%clk 0:00:03]}  Rg3+ {[%clk 0:00:11]} 60. Kf7 {[%clk 0:00:02]}  Rg7+ {[%clk 0:00:11]} 61. Kf8 {[%clk 0:00:03]}  Bf6 {[%clk 0:00:10]} 62. Ra7+ {[%clk 0:00:02]}  Kd8 {[%clk 0:00:10]} 63. Ra8+ {[%clk 0:00:03]}  Kc7 {[%clk 0:00:10]} 64. Ra7+ {[%clk 0:00:03]}  Kb6 {[%clk 0:00:11]} 65. Rd7 {[%clk 0:00:03]}  Kc5 {[%clk 0:00:11]} 66. Ra7 {[%clk 0:00:03]}  Kxd5 {[%clk 0:00:11]} 67. Ra5+ {[%clk 0:00:04]}  Ke4 {[%clk 0:00:11]} 68. Rb5 {[%clk 0:00:00]}  Rg5 {[%clk 0:00:10]} 0-1


[Site "https://www.chess.com"]